fUST/lending_fUST_20251113
["ID","MTS","AMOUNT","RATE_DAILY","PERIOD"]
[393777586,1762975847367,-500.0,0.0003252,60]
[393777589,1762975847376,-500.0,0.00032852,60]
[393777591,1762975847386,-500.0,0.00032852,60]
[393777593,1762975847396,-500.0,0.00032898,60]
[393777595,1762975847406,-500.0,0.00033098,60]
[393777597,1762975847417,-500.0,0.00033665,60]
[393777599,1762975847426,-970.90252291,0.00033724,2]
[393777601,1762975847436,-548.68750493,0.00033823,60]
[393777602,1762975847445,-752.66835698,0.00033907,2]
[393777604,1762975847454,-706.0,0.0003394,7]
[393777606,1762975847463,-1500.0,0.00033968,5]
[393777608,1762975847472,-753.38,0.0003398,10]
[393777610,1762975847481,-96825.30288281,0.0003399,2]
[393777612,1762975847491,-36229.67287886,0.0003399,2]
[393777615,1762975847502,-12211.00564324,0.0003399,2]
[393777617,1762975847512,-2059.02882292,0.0003399,2]
[393777619,1762975847521,-276.999512,0.0003399,31]
[393777621,1762975847531,-276.999512,0.0003399,31]
[393777623,1762975847541,-276.999512,0.0003399,31]
[393777625,1762975847552,-276.999512,0.0003399,31]
[393777627,1762975847562,-151.0,0.0003399,31]
[393777629,1762975847571,-1193.833935,0.0003399,31]
[393777631,1762975847580,-1193.833935,0.0003399,31]
[393777632,1762975847590,-1193.833935,0.0003399,31]
[393777634,1762975847600,-1193.833935,0.0003399,31]
[393777636,1762975847609,-151.0,0.0003399,31]
[393777638,1762975847618,-151.0,0.0003399,31]
[393777640,1762975847630,-151.0,0.0003399,31]
[393777642,1762975847639,-706.0,0.00033995,7]
[393777644,1762975847649,-71553.46988504,0.00034,2]
[393777646,1762975847658,-276.999512,0.00034,31]
[393777648,1762975847668,-276.999512,0.00034,31]
[393777650,1762975847677,-276.999512,0.00034,31]
[393777652,1762975847687,-276.999512,0.00034,31]
[393777654,1762975847696,-151.0,0.00034,31]
[393777655,1762975847707,-1193.833935,0.00034,31]
[393777656,1762975847717,-1193.833935,0.00034,31]
[393777657,1762975847726,-1193.833935,0.00034,31]
[393777658,1762975847735,-1193.833935,0.00034,31]
[393777659,1762975847744,-151.0,0.00034,31]
[393777660,1762975847753,-151.0,0.00034,31]
[393777661,1762975847762,-151.0,0.00034,31]
[393777662,1762975847771,-154.73,0.00034004,60]
[393777663,1762975847781,-706.0,0.0003405,7]
[393777664,1762975847790,-500.0,0.00034073,5]
[393777665,1762975847799,-500.0,0.00034073,5]
[393777666,1762975847808,-500.0,0.00034073,5]
[393777667,1762975847817,-500.0,0.00034073,5]
[393777669,1762975847827,-48440.6785221,0.00034074,2]
[393777671,1762975847836,-2059.02882292,0.00034074,2]
[393777672,1762975847845,-819.56,0.00034084,3]
[393777673,1762975847855,-154.73,0.00034104,60]
[393777675,1762975847864,-706.0,0.00034104,7]
[393777677,1762975847873,-723.6577638,0.00034159,7]
[393777679,1762975847882,-154.73,0.00034204,60]
[393777680,1762975847891,-312.0,0.00034249,120]
[393777681,1762975847901,-154.73,0.00034304,60]
[393777682,1762975847915,-501.7,0.00034328,2]
[393777683,1762975847924,-154.73,0.00034404,60]
[393777684,1762975847933,-1160.0,0.00034454,2]
[393777685,1762975847942,-154.73,0.00034504,60]
[393777686,1762975847952,-2033.05225721,0.00034516,5]
[393777687,1762975847961,-154.73,0.00034604,60]
[393777688,1762975847970,-1000.0,0.00034621,5]
[393777689,1762975847980,-1000.0,0.00034621,5]
[393777690,1762975847989,-154.73,0.00034704,60]
[393777691,1762975847999,-1469.81,0.00034791,2]
[393777692,1762975848008,-1469.81,0.00034792,2]
[393777693,1762975848018,-154.73,0.00034804,60]
[393777694,1762975848027,-151.0,0.0003489,7]
[393777695,1762975848036,-158.87721215,0.0003489,7]
[393777696,1762975848045,-161.28052374,0.0003489,7]
[393777697,1762975848054,-174.82124501,0.0003489,7]
[393777698,1762975848063,-151.0,0.0003489,7]
[393777699,1762975848072,-151.0,0.0003489,7]
[393777700,1762975848081,-500.0,0.0003489,60]
[393777701,1762975848091,-501.75107031,0.0003489,60]
[393777702,1762975848100,-151.0,0.0003489,31]
[393777703,1762975848110,-475.744071,0.0003489,31]
[393777704,1762975848120,-475.744071,0.0003489,31]
[393777705,1762975848129,-475.744071,0.0003489,31]
[393777706,1762975848139,-151.0,0.0003489,31]
[393777707,1762975848149,-475.744071,0.0003489,31]
[393777708,1762975848158,-273.18094,0.0003489,31]
[393777709,1762975848169,-151.0,0.0003489,30]
[393777710,1762975848178,-273.18094,0.0003489,31]
[393777712,1762975848187,-151.0,0.0003489,30]
[393777714,1762975848196,-273.18094,0.0003489,31]
[393777716,1762975848205,-273.18094,0.0003489,31]
[393777717,1762975848214,-2827.906458,0.0003489,31]
[393777718,1762975848223,-2827.906458,0.0003489,31]
[393777719,1762975848233,-2827.906458,0.0003489,31]
[393777720,1762975848242,-2827.906458,0.0003489,31]
[393777721,1762975848251,-1469.81,0.00034891,2]
[393777722,1762975848260,-151.0,0.00034894,7]
[393777723,1762975848269,-151.0,0.00034894,7]
[393777724,1762975848279,-214.59743336,0.00034894,7]
[393777725,1762975848288,-151.65582355,0.00034894,7]
[393777726,1762975848297,-151.0,0.00034894,7]
[393777727,1762975848307,-151.0,0.00034894,7]
[393777728,1762975848316,-151.0,0.00034894,7]
[393777729,1762975848326,-151.0,0.00034894,7]
[393777730,1762975848334,-500.0,0.00034894,7]
[393777731,1762975848343,-208.68617899,0.00034894,7]
[393777732,1762975848351,-151.0,0.00034894,7]
[393777733,1762975848360,-151.0,0.00034894,7]
[393777734,1762975848368,-500.0,0.00034894,7]
[393777735,1762975848378,-208.5332635,0.00034894,7]
[393777736,1762975848386,-151.0,0.00034894,7]
[393777737,1762975848393,-209.44431586,0.000349,120]
[393777738,1762975848401,-175.32149547,0.000349,120]
[393777739,1762975848408,-190.23747497,0.000349,120]
[393777740,1762975848417,-154.73,0.00034904,60]
[393777741,1762975848426,-151.0,0.00034945,7]
[393777742,1762975848434,-151.0,0.00034945,7]
[393777743,1762975848442,-151.0,0.00034945,7]
[393777744,1762975848451,-151.0,0.00034949,7]
[393777745,1762975848459,-151.0,0.00034949,7]
[393777746,1762975848468,-151.0,0.00034949,7]
[393777747,1762975848477,-151.0,0.00034949,7]
[393777748,1762975848486,-176.52977833,0.00034949,7]
[393777749,1762975848495,-151.0,0.00034949,7]
[393777750,1762975848504,-500.0,0.00034949,7]
[393777751,1762975848513,-151.0,0.00034949,7]
[393777752,1762975848522,-151.0,0.00034949,7]
[393777753,1762975848531,-500.0,0.00034949,7]
[393777754,1762975848540,-276.999512,0.00034949,31]
[393777755,1762975848551,-276.999512,0.00034949,31]
[393777756,1762975848563,-276.999512,0.00034949,31]
[393777757,1762975848572,-276.999512,0.00034949,31]
[393777758,1762975848582,-151.0,0.00034949,31]
[393777759,1762975848591,-1193.833935,0.00034949,31]
[393777760,1762975848600,-1193.833935,0.00034949,31]
[393777761,1762975848611,-1193.833935,0.00034949,31]
[393777762,1762975848619,-1193.833935,0.00034949,31]
[393777763,1762975848628,-151.0,0.00034949,31]
[393777764,1762975848637,-151.0,0.00034949,31]
[393777765,1762975848646,-151.0,0.00034949,31]
[393777766,1762975848655,-500.0,0.00034973,5]
[393777767,1762975848664,-500.0,0.00034973,5]
[393777768,1762975848673,-209.68413965,0.00035,7]
[393777769,1762975848682,-240.87977371,0.00035,7]
[393777770,1762975848691,-201.73665266,0.00035,7]
[393777771,1762975848699,-203.84198952,0.00035,2]
[393777772,1762975848708,-151.0,0.00035,120]
[393777773,1762975848717,-1343.93512981,0.00035,120]
[393777774,1762975848726,-2332.89630064,0.00035,20]
[393777775,1762975848735,-1335.59967131,0.00035002,2]
[393777776,1762975848743,-324.78441319,0.00035004,7]
[393777777,1762975848755,-184.43543381,0.00035004,7]
[393777778,1762975848764,-154.73,0.00035004,60]
[393777779,1762975848772,-154.73,0.00035104,60]
[393777780,1762975848781,-1469.81,0.00035165,2]
[393777781,1762975848790,-154.73,0.00035204,60]
[393777782,1762975848799,-224.40402745,0.00035212,2]
[393777783,1762975848808,-154.73,0.00035304,60]
[393777784,1762975848817,-282.93,0.00035328,14]
[393777785,1762975848826,-154.73,0.00035404,60]
[393777786,1762975848835,-230.97538391,0.00035444,2]
[393777787,1762975848843,-48440.6785221,0.00035462,3]
[393777788,1762975848852,-2059.02882292,0.00035462,3]
[393777789,1762975848861,-500.0,0.00035473,5]
[393777790,1762975848870,-500.0,0.00035473,5]
[393777791,1762975848878,-298.41498586,0.00035473,5]
[393777792,1762975848887,-500.0,0.00035473,5]
[393777793,1762975848896,-500.0,0.00035473,5]
[393777794,1762975848905,-190.46769985,0.00035481,10]
[393777795,1762975848914,-151.0,0.00035482,31]
[393777796,1762975848924,-151.0,0.00035482,31]
[393777797,1762975848933,-224.893709,0.00035482,31]
[393777798,1762975848942,-224.893709,0.00035482,31]
[393777799,1762975848951,-224.893709,0.00035482,31]
[393777800,1762975848960,-224.893709,0.00035482,31]
[393777801,1762975848969,-301.999999,0.00035482,31]
[393777802,1762975848979,-151.0,0.00035482,2]
[393777803,1762975848988,-153.965921,0.00035482,31]
[393777804,1762975848998,-374.065547,0.00035482,31]
[393777805,1762975849006,-374.065547,0.00035482,31]
[393777806,1762975849015,-151.0,0.00035482,31]
[393777807,1762975849024,-374.065547,0.00035482,31]
[393777808,1762975849033,-374.065547,0.00035482,31]
[393777809,1762975849043,-319.87508,0.00035482,31]
[393777810,1762975849169,-319.87508,0.00035482,31]
[393777811,1762975849179,-151.0,0.00035482,31]
[393777812,1762975849188,-319.87508,0.00035482,31]
[393777813,1762975849197,-152.995414,0.00035482,31]
[393777814,1762975849206,-319.87508,0.00035482,31]
[393777815,1762975849215,-375.741349,0.00035482,31]
[393777816,1762975849226,-375.741349,0.00035482,31]
[393777817,1762975849236,-375.741349,0.00035482,31]
[393777818,1762975849245,-375.741349,0.00035482,31]
[393777819,1762975849255,-151.0,0.00035482,31]
[393777820,1762975849264,-151.0,0.00035482,31]
[393777821,1762975849274,-475.744071,0.00035482,31]
[393777822,1762975849283,-475.744071,0.00035482,31]
[393777823,1762975849293,-475.744071,0.00035482,31]
[393777824,1762975849303,-165.382187,0.00035482,31]
[393777825,1762975849313,-475.744071,0.00035482,31]
[393777826,1762975849322,-273.18094,0.00035482,31]
[393777827,1762975849331,-151.0,0.00035482,30]
[393777828,1762975849340,-273.18094,0.00035482,31]
[393777829,1762975849350,-273.18094,0.00035482,31]
[393777830,1762975849360,-273.18094,0.00035482,31]
[393777831,1762975849369,-2827.906458,0.00035482,31]
[393777832,1762975849378,-2827.906458,0.00035482,31]
[393777833,1762975849387,-2827.906458,0.00035482,31]
[393777834,1762975849396,-2827.906458,0.00035482,31]
[393777835,1762975849406,-313.63,0.000355,14]
[393777836,1762975849416,-154.73,0.00035504,60]
[393777837,1762975849426,-154.73,0.00035604,60]
[393777838,1762975849435,-151.0,0.00035616,31]
[393777839,1762975849444,-154.73,0.00035704,60]
[393777840,1762975849454,-154.73,0.00035804,60]
[393777841,1762975849463,-209.44431586,0.000359,120]
[393777842,1762975849474,-211.797476,0.000359,60]
[393777843,1762975849483,-175.32149547,0.000359,120]
[393777844,1762975849492,-190.23747497,0.000359,120]
[393777845,1762975849501,-2997.79834433,0.000359,15]
[393777846,1762975849510,-276.999512,0.000359,31]
[393777847,1762975849520,-276.999512,0.000359,31]
[393777848,1762975849529,-276.999512,0.000359,31]
[393777849,1762975849539,-276.999517,0.000359,31]
[393777850,1762975849553,-1193.833935,0.000359,31]
[393777851,1762975849563,-1193.833935,0.000359,31]
[393777852,1762975849572,-1193.833935,0.000359,31]
[393777853,1762975849582,-1193.833931,0.000359,31]
[393777854,1762975849592,-151.0,0.000359,31]
[393777855,1762975849601,-151.0,0.000359,31]
[393777856,1762975849611,-294.895725,0.000359,31]
[393777857,1762975849620,-154.73,0.00035904,60]
[393777858,1762975849631,-211.797476,0.00035972,60]
[393777859,1762975849640,-500.0,0.00035973,5]
[393777860,1762975849649,-500.0,0.00035973,5]
[393777861,1762975849658,-500.0,0.00035973,5]
[393777862,1762975849668,-1469.81,0.00035977,2]
[393777863,1762975849677,-1469.81,0.00035977,2]
[393777864,1762975849687,-48440.6785221,0.0003598,3]
[393777865,1762975849697,-4118.05764584,0.0003598,3]
[393777866,1762975849722,-1469.81,0.00035987,2]
[393777867,1762975849732,-504.22968347,0.00035988,5]
[393777868,1762975849741,-154.73,0.00036004,60]
[393777869,1762975849750,-503.1055677,0.00036021,5]
[393777870,1762975849759,-1000.0,0.00036021,5]
[393777871,1762975849768,-240.60033428,0.00036021,5]
[393777872,1762975849777,-211.797476,0.00036043,60]
[393777873,1762975849786,-154.73,0.00036104,60]
[393777874,1762975849796,-211.797476,0.00036114,60]
[393777875,1762975849805,-211.797476,0.00036186,60]
[393777876,1762975849814,-151.0,0.000362,120]
[393777877,1762975849823,-325.46,0.000362,30]
[393777878,1762975849832,-154.82,0.00036204,60]
[393777879,1762975849841,-339.0,0.00036249,120]
[393777880,1762975849851,-271.16703883,0.00036361,11]
[393777881,1762975849860,-2059.02882292,0.0003653,3]
[393777882,1762975849869,-500.0,0.0003654,5]
[393777883,1762975849878,-502.72197165,0.0003654,5]
[393777884,1762975849887,-150.0,0.00036567,2]
[393777885,1762975849896,-3967.0264851,0.00036567,14]
[393777886,1762975849906,-2769.44815886,0.00036567,7]
[393777887,1762975849915,-1500.0,0.00036567,3]
[393777888,1762975849924,-283.05023223,0.00036567,2]
[393777889,1762975849934,-311.23575577,0.00036567,2]
[393777890,1762975849944,-1469.81,0.00036729,2]
[393777891,1762975849953,-668.93,0.00036969,2]
[393777892,1762975849962,-151.0,0.0003699,2]
[393777893,1762975849972,-374.065547,0.0003699,31]
[393777894,1762975849981,-374.065547,0.0003699,31]
[393777895,1762975849991,-158.451047,0.0003699,31]
[393777896,1762975850000,-151.0,0.0003699,31]
[393777897,1762975850010,-374.065547,0.0003699,31]
[393777898,1762975850019,-374.065547,0.0003699,31]
[393777899,1762975850028,-319.87508,0.0003699,31]
[393777900,1762975850038,-319.87508,0.0003699,31]
[393777901,1762975850047,-151.0,0.0003699,31]
[393777902,1762975850056,-319.87508,0.0003699,31]
[393777903,1762975850066,-319.87508,0.0003699,31]
[393777904,1762975850076,-375.741349,0.0003699,31]
[393777905,1762975850084,-375.741349,0.0003699,31]
[393777906,1762975850094,-375.741349,0.0003699,31]
[393777907,1762975850103,-375.741349,0.0003699,31]
[393777908,1762975850113,-248.476999,0.0003699,31]
[393777909,1762975850123,-475.744071,0.0003699,31]
[393777910,1762975850132,-475.744071,0.0003699,31]
[393777911,1762975850141,-475.744071,0.0003699,31]
[393777912,1762975850151,-475.744071,0.0003699,31]
[393777913,1762975850162,-273.18094,0.0003699,31]
[393777914,1762975850171,-151.0,0.0003699,30]
[393777915,1762975850181,-273.18094,0.0003699,31]
[393777916,1762975850191,-273.18094,0.0003699,31]
[393777917,1762975850201,-273.18094,0.0003699,31]
[393777918,1762975850212,-2827.906458,0.0003699,31]
[393777919,1762975850222,-2827.906458,0.0003699,31]
[393777920,1762975850231,-2827.906458,0.0003699,31]
[393777921,1762975850240,-2827.906458,0.0003699,31]
[393777922,1762975850250,-209.44431586,0.00037,120]
[393777923,1762975850259,-1000.0,0.00037088,5]
[393777924,1762975850269,-151.0,0.000373,120]
[393777925,1762975850279,-313.63,0.000373,14]
[393777926,1762975850289,-151.0,0.00037316,31]
[393777927,1762975850299,-151.0,0.00037316,31]
[393777928,1762975850307,-224.893709,0.00037316,31]
[393777929,1762975850317,-224.893709,0.00037316,31]
[393777930,1762975850326,-224.893709,0.00037316,31]
[393777931,1762975850335,-224.893709,0.00037316,31]
[393777932,1762975850344,-502.40249184,0.00037327,5]
[393777933,1762975850354,-2440.32,0.000374,14]
[393777934,1762975850364,-150.8659288,0.0003745,60]
[393777935,1762975850373,-781.10377668,0.00037636,5]
[393777936,1762975850382,-230.97538391,0.00037728,2]
[393777937,1762975850392,-325.46,0.000382,30]
[393777938,1762975850402,-2059.02882292,0.00038202,3]
[393777939,1762975850412,-475.744071,0.00038212,31]
[393777940,1762975850421,-475.744071,0.00038212,31]
[393777941,1762975850430,-475.744071,0.00038212,31]
[393777942,1762975850439,-475.744071,0.00038212,31]
[393777943,1762975850449,-273.18094,0.00038212,31]
[393777944,1762975850458,-151.0,0.00038212,30]
[393777945,1762975850467,-273.18094,0.00038212,31]
[393777946,1762975850477,-273.18094,0.00038212,31]
[393777947,1762975850486,-273.18094,0.00038212,31]
[393777948,1762975850495,-2827.906458,0.00038212,31]
[393777949,1762975850504,-2827.906458,0.00038212,31]
[393777950,1762975850515,-2827.906458,0.00038212,31]
[393777951,1762975850525,-2827.906458,0.00038212,31]
[393777952,1762975850535,-301.0,0.00038216,120]
[393777953,1762975850549,-230.0,0.00038222,120]
[393777954,1762975850558,-366.0,0.00038249,120]
[393777955,1762975850568,-239.0,0.000383,120]
[393777956,1762975850578,-230.0,0.000383,120]
[393777957,1762975850587,-159.0,0.000383,120]
[393777958,1762975850596,-168.0,0.00038312,2]
[393777959,1762975850606,-159.0,0.00038324,120]
[393777960,1762975850618,-162.0,0.00038324,120]
[393777961,1762975850628,-211.797476,0.00038325,2]
[393777962,1762975850638,-151.0,0.00038325,2]
[393777963,1762975850647,-374.065547,0.00038325,31]
[393777964,1762975850656,-374.065547,0.00038325,31]
[393777965,1762975850665,-223.557705,0.00038325,31]
[393777966,1762975850674,-374.065547,0.00038325,31]
[393777967,1762975850683,-374.065547,0.00038325,31]
[393777968,1762975850693,-319.87508,0.00038325,31]
[393777969,1762975850705,-319.87508,0.00038325,31]
[393777970,1762975850715,-151.0,0.00038325,31]
[393777971,1762975850723,-319.87508,0.00038325,31]
[393777972,1762975850732,-319.87508,0.00038325,31]
[393777973,1762975850742,-375.741349,0.00038325,31]
[393777974,1762975850751,-375.741349,0.00038325,31]
[393777975,1762975850760,-375.741349,0.00038325,31]
[393777976,1762975850769,-375.741349,0.00038325,31]
[393777977,1762975850778,-151.0,0.000385,120]
[393777978,1762975850788,-1469.81,0.00038538,2]
[393777979,1762975850797,-5000.0,0.00038539,4]
[393777980,1762975850806,-168.0,0.00038545,2]
[393777981,1762975850816,-2000.0,0.00038588,21]
[393777982,1762975850824,-168.0,0.00038728,2]
[393777983,1762975850833,-798.4657677,0.00038838,2]
[393777984,1762975850842,-159.1528359,0.00038838,2]
[393777985,1762975850851,-871.6602578,0.00038838,2]
[393777986,1762975850861,-1087.0,0.00038933,2]
[393777987,1762975850870,-151.0,0.0003899,120]
[393777988,1762975850880,-151.0,0.0003899,120]
[393777989,1762975850889,-224.893709,0.0003899,120]
[393777990,1762975850898,-224.893709,0.0003899,120]
[393777991,1762975850906,-224.893709,0.0003899,120]
[393777992,1762975850916,-224.893709,0.0003899,120]
[393777993,1762975850925,-1087.0,0.00039034,120]
[393777994,1762975850935,-2440.32,0.000391,14]
[393777995,1762975850944,-168.0,0.00039271,2]
[393777996,1762975850953,-1086.0,0.00039331,7]
[393777997,1762975850962,-313.63,0.000394,14]
[393777998,1762975850971,-168.0,0.00039513,2]
[393777999,1762975850980,-836.17,0.00039609,2]
[393778000,1762975850989,-260.656007,0.00039654,2]
[393778001,1762975850998,-151.0,0.000397,120]
[393778002,1762975851008,-150.1652849,0.0004,120]
[393778003,1762975851017,-231.2063593,0.00040012,2]
[393778004,1762975851026,-168.0,0.0004018,2]
[393778005,1762975851035,-1086.0,0.00040194,120]
[393778006,1762975851044,-168.0,0.00040199,7]
[393778007,1762975851053,-239.0,0.00040215,120]
[393778008,1762975851062,-159.0,0.00040215,120]
[393778009,1762975851071,-168.0,0.00040228,2]
[393778010,1762975851080,-159.0,0.0004024,120]
[393778011,1762975851089,-393.0,0.00040249,120]
[393778012,1762975851099,-325.46,0.000403,30]
[393778013,1762975851108,-168.0,0.00040379,2]
[393778014,1762975851117,-1086.0,0.00040429,2]
[393778015,1762975851126,-168.0,0.00040436,7]
[393778016,1762975851136,-168.0,0.0004058,7]
[393778017,1762975851145,-151.0,0.000408,120]
[393778018,1762975851154,-1086.0,0.00040935,2]
[393778019,1762975851163,-2059.02882292,0.0004099,3]
[393778020,1762975851172,-2440.32,0.00041,14]
[393778021,1762975851181,-168.0,0.00041022,2]
[393778022,1762975851190,-164.80596483,0.0004107,2]
[393778023,1762975851199,-267.15716294,0.0004107,2]
[393778024,1762975851208,-184.58088569,0.0004107,2]
[393778025,1762975851217,-738.32354277,0.0004107,2]
[393778026,1762975851227,-1661.22797123,0.0004107,2]
[393778027,1762975851236,-212.54332767,0.0004107,2]
[393778028,1762975851245,-382.5779898,0.0004107,2]
[393778029,1762975851254,-151.0,0.00041096,120]
[393778030,1762975851263,-151.0,0.00041096,120]
[393778031,1762975851272,-151.0,0.00041096,120]
[393778032,1762975851281,-151.0,0.00041096,120]
[393778033,1762975851289,-168.0,0.00041118,120]
[393778034,1762975851299,-1181.2206204,0.00041307,30]
[393778035,1762975851307,-168.0,0.00041411,2]
[393778036,1762975851317,-313.63,0.000415,14]
[393778037,1762975851326,-168.0,0.00041515,2]
[393778038,1762975851335,-168.0,0.00041526,120]
[393778039,1762975851344,-1469.81,0.00041595,2]
[393778040,1762975851353,-168.0,0.00041596,7]
[393778041,1762975851362,-296.35408596,0.00041816,2]
[393778042,1762975851371,-1086.0,0.00041868,2]
[393778043,1762975851380,-151.0,0.00042,120]
[393778044,1762975851389,-275.6388198,0.00042129,30]
[393778045,1762975851398,-153.0,0.00042129,30]
[393778046,1762975851408,-153.0,0.00042129,30]
[393778047,1762975851418,-153.0,0.00042129,30]
[393778048,1762975851427,-1087.0,0.00042141,7]
[393778049,1762975851436,-239.0,0.00042226,120]
[393778050,1762975851446,-159.0,0.00042226,120]
[393778051,1762975851455,-420.0,0.00042249,120]
[393778052,1762975851464,-1003.4,0.0004225,2]
[393778053,1762975851474,-159.0,0.00042252,120]
[393778054,1762975851483,-325.46,0.000423,30]
[393778055,1762975851492,-401.0,0.0004265,61]
[393778056,1762975851500,-200.0,0.00042673,120]
[393778057,1762975851510,-153.0,0.00042676,30]
[393778058,1762975851520,-151.0,0.0004286,2]
[393778059,1762975851529,-374.065547,0.0004286,120]
[393778060,1762975851538,-374.065547,0.0004286,120]
[393778061,1762975851552,-374.065547,0.0004286,120]
[393778062,1762975851562,-374.065547,0.0004286,120]
[393778063,1762975851571,-319.87508,0.0004286,120]
[393778064,1762975851581,-319.87508,0.0004286,120]
[393778065,1762975851591,-151.0,0.0004286,120]
[393778066,1762975851600,-319.87508,0.0004286,120]
[393778067,1762975851609,-319.87508,0.0004286,120]
[393778068,1762975851620,-375.741349,0.0004286,120]
[393778069,1762975851629,-375.741349,0.0004286,120]
[393778070,1762975851638,-375.741349,0.0004286,120]
[393778071,1762975851648,-375.741349,0.0004286,120]
[393778072,1762975851657,-151.0,0.0004286,120]
[393778073,1762975851667,-475.744071,0.0004286,120]
[393778074,1762975851676,-475.744071,0.0004286,120]
[393778075,1762975851686,-475.744071,0.0004286,120]
[393778076,1762975851695,-475.744073,0.0004286,120]
[393778077,1762975851704,-273.18094,0.0004286,120]
[393778078,1762975851713,-151.0,0.0004286,30]
[393778079,1762975851824,-273.18094,0.0004286,120]
[393778080,1762975851834,-273.18094,0.0004286,120]
[393778081,1762975851845,-273.180936,0.0004286,120]
[393778082,1762975851854,-2827.906458,0.0004286,120]
[393778083,1762975851864,-2827.906458,0.0004286,120]
[393778084,1762975851873,-2827.906458,0.0004286,120]
[393778085,1762975851882,-2827.906455,0.0004286,120]
[393778086,1762975851892,-2059.02882292,0.0004286,3]
[393778087,1762975851901,-151.0,0.0004287,120]
[393778088,1762975851911,-173.12739,0.0004287,120]
[393778089,1762975851920,-224.893709,0.0004287,120]
[393778090,1762975851929,-224.893709,0.0004287,120]
[393778091,1762975851939,-224.893709,0.0004287,120]
[393778092,1762975851948,-224.893709,0.0004287,120]
[393778093,1762975851957,-153.52828544,0.0004287,10]
[393778094,1762975851966,-151.0,0.0004287,10]
[393778095,1762975851975,-209.40437684,0.0004287,10]
[393778096,1762975851984,-151.0,0.0004287,10]
[393778097,1762975851994,-217.15233878,0.0004287,10]
[393778098,1762975852003,-151.0,0.0004287,10]
[393778099,1762975852012,-225.18697532,0.0004287,10]
[393778100,1762975852021,-151.0,0.0004287,10]
[393778101,1762975852030,-233.51889341,0.0004287,10]
[393778102,1762975852039,-151.0,0.0004287,10]
[393778103,1762975852049,-242.15909246,0.0004287,10]
[393778104,1762975852059,-151.0,0.0004287,10]
[393778105,1762975852069,-251.11897888,0.0004287,10]
[393778106,1762975852079,-151.0,0.0004287,10]
[393778107,1762975852087,-260.4103811,0.0004287,10]
[393778108,1762975852096,-151.0,0.0004287,10]
[393778109,1762975852105,-300.0,0.0004287,10]
[393778110,1762975852115,-270.0455652,0.0004287,10]
[393778111,1762975852124,-151.0,0.0004287,10]
[393778112,1762975852133,-300.0,0.0004287,10]
[393778113,1762975852142,-151.0,0.0004287,10]
[393778114,1762975852152,-280.03725112,0.0004287,10]
[393778115,1762975852161,-300.0,0.0004287,10]
[393778116,1762975852170,-151.0,0.0004287,10]
[393778117,1762975852179,-290.39862941,0.0004287,10]
[393778118,1762975852188,-300.0,0.0004287,10]
[393778119,1762975852197,-301.1433787,0.0004287,10]
[393778120,1762975852206,-300.0,0.0004287,10]
[393778121,1762975852215,-300.0,0.0004287,10]
[393778122,1762975852227,-300.0,0.0004287,10]
[393778123,1762975852236,-300.0,0.0004287,10]
[393778124,1762975852245,-300.0,0.0004287,10]
[393778125,1762975852255,-406.7374375,0.0004287,10]
[393778126,1762975852264,-151.0,0.0004287,10]
[393778127,1762975852273,-160.0,0.0004287,10]